bitfinex/quotes_ETHUSD_20250123
["timestamp","ask_amount","ask_price","bid_price","bid_amount"]
[1737648584882,1.52527,3278.1,3277.6,0.55]
[1737648585061,1.52533,3278.0,3277.6,0.55]
[1737648586474,1.52536,3277.9,3277.6,0.55]
[1737648586684,1.52522,3278.2,3277.0,1.50362847]
[1737648586893,1.52551,3277.6,3277.0,1.50362847]
[1737648587208,0.7519,3278.4,3277.5,0.55]
[1737648587209,1.52533,3278.0,3277.5,0.55]
[1737648587546,1.52523,3278.2,3277.5,0.55]
[1737648587949,1.52523,3278.2,3277.5,0.83802255]
[1737648588149,0.7845,3278.7,3277.6,0.8189]
[1737648588406,1.52497,3278.8,3277.9,0.55]
[1737648588547,1.52501,3278.7,3278.1,0.55]
[1737648588745,1.52522,3278.2,3278.1,0.55]
[1737648588951,1.52526,3278.2,3277.6,0.7561]
[1737648589149,1.52526,3278.2,3277.7,0.55]
[1737648589386,1.5253,3278.1,3277.7,2.1348763]
[1737648589685,1.52526,3278.2,3277.7,2.1348763]
[1737648589902,1.52485,3279.0,3276.6,2.28011126]
[1737648589903,0.7665,3278.3,3276.6,2.28011126]
[1737648590053,1.52508,3278.5,3277.5,1.59030726]
[1737648590404,1.52517,3278.4,3277.5,1.59030726]
[1737648590550,2.29154,3278.6,3277.5,4.64140726]
[1737648590750,1.52514,3278.4,3277.4,0.7843]
[1737648591111,1.52514,3278.4,3277.5,1.59030726]
[1737648591289,1.52514,3278.4,3277.5,36.59030726]
[1737648591585,1.52514,3278.4,3277.5,35.0]
[1737648591889,1.52514,3278.4,3277.6,0.55]
[1737648592054,1.98654,3278.6,3277.5,0.55]
[1737648592253,1.22004,3278.6,3277.9,0.55]
[1737648592481,1.22004,3278.6,3277.9,35.55]
[1737648592789,1.2201,3278.5,3277.9,35.55]
[1737648593294,1.22002,3278.7,3277.9,35.55]
[1737648593498,1.22007,3278.5,3277.9,35.55]
[1737648593706,1.2201,3278.5,3277.9,0.55]
[1737648593865,1.21995,3278.8,3277.9,0.55]
[1737648594068,1.2202,3278.2,3277.9,0.55]
[1737648594273,1.22027,3278.0,3277.5,0.7697]
[1737648594466,1.22035,3277.8,3276.6,0.7697]
[1737648594648,1.22045,3277.5,3276.7,0.53983863]
[1737648594879,1.22045,3277.5,3276.8,35.0]
[1737648595212,1.22048,3277.4,3276.8,35.0]
[1737648595602,1.22052,3277.3,3276.8,35.0]
[1737648596111,1.22057,3277.2,3276.8,35.0]
[1737648596311,1.22057,3277.2,3276.9,0.55]
[1737648596512,0.7555,3277.5,3276.8,35.0]
[1737648596808,1.22064,3277.0,3276.6,0.7697]
[1737648597311,1.22064,3277.0,3276.7,35.55]
[1737648597807,1.21992,3278.9,3277.1,0.55]
[1737648598009,1.22034,3277.8,3277.1,0.55]
[1737648598195,1.22039,3277.7,3277.1,0.55]
[1737648598400,1.22039,3277.7,3277.3,0.55]
[1737648598652,1.22051,3277.3,3277.2,35.0]
[1737648598775,1.22056,3277.2,3276.7,0.7689]
[1737648598975,1.22059,3277.1,3276.7,0.7689]
[1737648599211,1.22063,3277.0,3276.8,35.0]
[1737648600179,1.22076,3276.7,3276.2,1.4526]
[1737648600587,1.22067,3276.9,3276.3,35.0]
[1737648600786,1.22053,3277.3,3276.4,3.10202562]
[1737648600992,1.22053,3277.3,3276.5,0.55]
[1737648601480,1.22047,3277.5,3276.6,35.8262]
[1737648601832,1.22059,3277.1,3276.6,35.8262]
[1737648602039,1.22074,3276.7,3276.6,35.0]
[1737648603047,1.22074,3276.7,3276.4,0.55]
[1737648603456,1.22069,3276.9,3276.4,0.55]
[1737648603629,1.22069,3276.9,3276.5,35.0]
[1737648604200,1.22059,3277.1,3276.6,0.55]
[1737648604406,1.22059,3277.1,3276.4,0.55]
[1737648604407,1.22068,3276.9,3276.4,0.55]
[1737648604929,1.22068,3276.9,3276.3,0.7803]
[1737648604930,1.22068,3276.9,3276.6,0.55]
[1737648605126,1.22063,3277.0,3276.6,0.55]
[1737648605329,1.22053,3277.3,3276.6,3.25362375]
[1737648605699,0.7677,3277.7,3276.8,0.55]
[1737648605903,1.22022,3278.1,3276.8,0.55]
[1737648605904,1.2204,3277.6,3276.8,0.55]
[1737648606105,1.2205,3277.4,3276.8,0.55]
[1737648606306,3.8222,3278.0,3276.8,0.55]
[1737648606538,1.22048,3277.4,3276.8,0.55]
[1737648606730,1.22041,3277.6,3276.8,0.55]
[1737648607037,1.22038,3277.7,3276.8,3.60167]
[1737648607239,1.22038,3277.7,3276.8,0.55]
[1737648607538,2.4404,3278.2,3277.3,0.8252]
[1737648607732,1.22019,3278.2,3277.4,0.992651]
[1737648607925,0.7792,3278.4,3277.4,0.992651]
[1737648607926,1.22031,3277.9,3277.4,0.992651]
[1737648608136,1.22035,3277.8,3277.5,35.0]
[1737648608308,3.0,3278.8,3277.0,1.52443892]
[1737648608655,1.22033,3277.8,3277.0,1.52443892]
[1737648608819,1.22033,3277.8,3276.1,3.0]
[1737648608820,1.22011,3278.4,3277.4,0.55]
[1737648609022,1.22011,3278.4,3277.1,36.58496917]
[1737648609023,0.074103,3279.9,3279.2,1.3752]
[1737648609331,0.074103,3279.9,3279.2,0.8252]
[1737648609842,0.005,3280.8,3279.3,3.04943]
[1737648610069,0.005,3280.8,3279.2,0.8252]
[1737648610070,0.005,3280.8,3280.0,3.59869]
[1737648610221,0.005,3280.8,3280.5,1.51340691]
[1737648610553,0.005,3280.8,3280.6,0.55]
[1737648610719,0.005,3280.8,3280.5,1.7197476]
[1737648610720,1.51327878,3280.8,3280.2,1.54132856]
[1737648610914,0.7792,3280.6,3279.7,1.56726709]
[1737648611217,0.7792,3280.6,3279.4,36.59324965]
[1737648611430,1.52415,3280.5,3279.5,2.14622201]
[1737648611638,1.52415,3280.5,3279.5,0.55]
[1737648611951,1.52446,3279.9,3279.5,2.14622201]
[1737648612155,0.25,3281.8,3279.5,2.14622201]
[1737648612528,0.25,3281.8,3279.7,2.11726709]
[1737648612965,0.7711,3281.0,3279.9,2.05128309]
[1737648613122,2.0,3283.4,3279.4,3.65825442]
[1737648613123,0.69395228,3282.5,3280.2,1.54132856]
[1737648613463,0.25,3283.3,3281.4,1.5307639]
[1737648613755,0.21230412,3282.5,3281.6,1.5881842]
[1737648613976,0.29160322,3282.4,3281.6,1.5881842]
[1737648614252,0.25,3283.3,3281.6,1.5881842]
[1737648614453,0.47481256,3283.3,3281.8,1.57279145]
[1737648614674,0.19120454,3283.9,3282.7,1.54578265]
[1737648614884,0.28108997,3284.4,3281.7,0.24123842]
[1737648614885,0.21833033,3286.1,3284.8,1.63321362]
[1737648615025,0.21833033,3286.1,3284.2,1.59738178]
[1737648615218,0.77978199,3284.5,3284.4,1.5422091]
[1737648615422,0.21833033,3286.1,3284.4,2.3664091]
[1737648615622,0.21833033,3286.1,3286.0,0.25]
[1737648616254,1.52019,3289.1,3286.0,3.84321]
[1737648616423,3.3e-06,3286.5,3286.4,0.5]
[1737648616622,3.3e-06,3286.5,3286.4,0.25]
[1737648617022,3.3e-06,3286.5,3286.1,0.86304564]
[1737648617254,3.3e-06,3286.5,3286.4,1.54151051]
[1737648617466,0.83923939,3287.8,3285.2,0.7826]
[1737648617467,1.5212,3286.9,3286.8,0.25]
[1737648617631,0.33923939,3287.7,3285.3,1.50396367]
[1737648617836,1.52134,3286.6,3285.3,1.50396367]
[1737648618038,1.52118,3287.0,3285.8,1.55540023]
[1737648618039,1.52116,3287.0,3285.8,1.55540023]
[1737648618240,1.52112,3287.1,3285.3,1.50396367]
[1737648618436,0.7527,3287.2,3285.4,1.5942291]
[1737648618670,1.52136,3286.6,3285.3,1.50396367]
[1737648618957,0.7527,3287.2,3284.1,1.52495519]
[1737648619158,1.52091,3287.5,3285.2,1.56507358]
[1737648619362,1.52068,3288.0,3285.6,1.51595316]
[1737648619524,1.52008,3289.3,3287.3,1.56328348]
[1737648619730,1.52031,3288.8,3287.2,1.50591124]
[1737648619927,0.44300491,3288.9,3287.2,1.50591124]
[1737648620756,0.44300491,3288.9,3286.7,0.7771]
[1737648620757,0.31419816,3289.3,3287.0,1.5367788]
[1737648620986,0.8152,3289.0,3286.3,1.52643506]
[1737648621194,0.31419816,3288.9,3286.1,1.51490828]
[1737648621469,0.55959705,3288.9,3286.2,0.25]
[1737648621628,0.55959705,3288.9,3285.8,0.25]
[1737648621629,0.55,3288.8,3285.8,0.25]
[1737648621831,0.55959705,3288.7,3285.6,0.25]
[1737648622075,0.86211215,3288.7,3285.0,0.25]
[1737648622275,3.55,3288.4,3284.6,0.25]
[1737648622439,2.0,3287.8,3283.9,0.25]
[1737648622645,0.3025151,3287.7,3283.5,1.0147]
[1737648622832,0.91447327,3287.7,3283.6,0.25]
[1737648623031,2.0,3287.4,3283.8,0.25]
[1737648623263,0.58906517,3287.3,3283.7,0.5]
[1737648623574,13.19824616,3288.9,3284.6,0.75]
[1737648623575,2.0,3288.4,3284.6,0.75]
[1737648623870,0.00422514,3289.4,3285.5,0.25]
[1737648623871,2.192,3289.2,3285.5,0.25]
[1737648624077,0.29776001,3288.9,3286.0,0.25]
[1737648624369,0.29776001,3289.3,3285.8,0.5]
[1737648624567,0.00422514,3289.4,3286.2,0.25]
[1737648624733,0.00422514,3289.4,3286.1,0.8064]
[1737648624734,0.00422514,3289.4,3286.6,0.75]
[1737648624941,0.00422514,3289.4,3286.4,0.25]
[1737648625293,0.30198515,3289.4,3286.7,0.25]
[1737648625493,0.00422514,3289.4,3286.9,0.25]
[1737648626046,0.00422514,3289.4,3286.7,0.5]
[1737648626250,0.00422514,3289.4,3286.3,35.25]
[1737648626446,0.00422514,3289.4,3286.1,0.25]
[1737648626642,0.55,3289.3,3286.0,0.25]
[1737648626863,0.55,3289.2,3285.7,0.25]
[1737648627187,0.84776001,3289.2,3285.3,0.7931]
[1737648627343,3.55,3288.8,3285.1,0.25]
[1737648627544,0.29776001,3288.7,3285.2,0.25]
[1737648627765,0.29776001,3288.7,3285.0,0.25]
[1737648627982,0.55,3288.6,3285.0,0.25]
[1737648628283,3.55,3288.4,3284.7,0.7896]
[1737648628508,0.55,3288.0,3284.7,0.7896]
[1737648628647,0.29776001,3287.9,3284.3,0.25]
[1737648628846,0.29776001,3287.9,3283.9,0.804]
[1737648628847,0.55,3287.5,3283.9,0.804]
[1737648629048,0.55,3287.3,3283.9,0.804]
[1737648629299,0.29776001,3287.2,3283.9,1.054]
[1737648629500,0.29776001,3287.2,3284.2,0.25]
[1737648629647,0.29776001,3287.2,3284.0,0.25]
[1737648629848,0.55,3287.1,3283.9,0.804]
[1737648630047,0.31311331,3287.0,3284.5,0.25]
[1737648630351,0.011,3299.1,3284.4,0.5]
[1737648630352,0.31311331,3287.6,3285.0,0.25]
[1737648630658,0.31311331,3288.0,3285.1,1.0742]
[1737648630853,0.31311331,3288.0,3285.3,0.25]
[1737648631050,0.47671068,3288.1,3285.1,1.0742]
[1737648631248,0.3178424,3288.2,3285.4,0.25]
[1737648631569,2.192,3288.7,3285.7,1.53013947]
[1737648631778,0.31782116,3288.3,3285.9,1.52211936]
[1737648631950,3.0,3288.6,3285.9,1.52211936]
[1737648632146,2.47654565,3289.4,3286.1,1.51490828]
[1737648632147,0.31781347,3288.8,3286.1,1.51490828]
[1737648632486,0.31781347,3288.8,3286.3,2.40017983]
[1737648632675,0.31781347,3288.8,3286.3,2.65017983]
[1737648632877,2.0,3289.1,3286.4,0.04178904]
[1737648633089,0.47654565,3289.4,3286.4,0.04178904]
[1737648633289,0.26140376,3289.0,3286.5,1.56375841]
[1737648633466,0.26140376,3289.0,3286.6,1.50273952]
[1737648633467,0.25720667,3288.9,3286.6,1.50273952]
[1737648633670,0.00419709,3289.0,3286.6,1.54417474]
[1737648633899,0.26140376,3289.0,3286.6,1.54417474]
[1737648634084,0.00419709,3289.0,3286.6,1.54417474]
[1737648634401,0.00419709,3289.0,3286.7,1.52756266]
[1737648634698,0.00419709,3289.0,3287.3,1.54176373]
[1737648635088,0.00419709,3289.0,3287.5,1.54499465]
[1737648635466,0.00419709,3289.0,3286.9,35.25]
[1737648635467,0.00419709,3289.0,3287.7,1.55575532]
[1737648635668,0.47654565,3289.4,3287.7,1.55575532]
[1737648635968,0.47654565,3289.4,3287.9,1.54740094]
[1737648636501,0.47654565,3289.4,3288.1,1.59338374]
[1737648636998,0.1684033,3289.8,3288.3,1.56577602]
[1737648637204,1e-08,3289.3,3288.5,1.53535025]
[1737648637374,0.45820385,3289.8,3288.5,1.53535025]
[1737648637578,0.1684033,3289.8,3288.7,1.57399475]
[1737648637776,0.1684033,3289.8,3288.7,1.58391911]
[1737648637985,0.1684033,3289.8,3286.9,1.53765077]
[1737648638188,0.46138155,3289.8,3288.9,1.55833598]
[1737648638399,0.46138155,3289.8,3286.9,0.25]
[1737648638400,0.1684033,3289.8,3286.9,1.53765077]
[1737648638598,2.28220055,3290.2,3287.2,1.53492985]
[1737648638801,2.28220055,3290.2,3286.4,0.5]
[1737648638802,1.5385439,3292.1,3287.6,1.56376445]
[1737648638963,0.79411024,3291.4,3287.9,1.54697149]
[1737648639163,3.20400585,3291.2,3287.7,1.58944119]
[1737648639369,0.55,3291.1,3287.6,1.56376445]
[1737648639576,0.55,3291.1,3287.1,0.25]
[1737648639577,0.17402731,3291.0,3287.0,1.56564361]
[1737648639803,0.44303316,3291.0,3290.9,0.11686769]
[1737648640107,0.44303316,3291.0,3290.7,1.5392412]
[1737648640108,0.44303316,3291.0,3287.4,1.55179539]
[1737648640109,3.79632225,3291.0,3287.4,1.55179539]
[1737648640268,3.79632225,3291.0,3287.3,0.5]
[1737648640269,2.7093852,3291.0,3287.6,1.52973965]
[1737648640465,12.56160742,3291.1,3287.6,1.52973965]
[1737648640687,2.0,3291.9,3286.9,1.3178]
[1737648640688,2.0,3291.9,3287.2,1.50376785]
[1737648641002,2.0,3291.9,3287.7,1.58207297]
[1737648641304,1e-08,3291.3,3287.9,1.55283599]
[1737648641502,1e-08,3291.3,3288.5,1.51788356]
[1737648641698,1e-08,3291.3,3288.1,1.51156986]
[1737648641903,1e-08,3291.3,3288.5,1.76788356]
[1737648642093,1e-08,3291.3,3288.2,1.56138583]
[1737648642267,1e-08,3291.3,3288.4,1.55456154]
[1737648642469,0.47622871,3293.4,3289.2,1.5584905]
[1737648642691,0.23852945,3293.4,3289.2,1.5584905]
[1737648643003,2.14831709,3293.8,3289.6,1.52138054]
[1737648643408,2.14831709,3293.8,3289.5,0.25]
[1737648643409,2.14831709,3293.8,3290.3,1.57906284]
[1737648644407,2.9309,3293.5,3289.7,1.55588936]
[1737648644593,2.9309,3293.1,3289.2,1.57632108]
[1737648644906,3.0,3292.8,3289.2,1.57632108]
[1737648645104,0.55,3292.7,3289.2,1.57632108]
[1737648645307,4.58313046,3293.0,3289.2,1.57632108]
[1737648645509,3.0096,3292.6,3289.2,1.57632108]
[1737648645673,3.0096,3292.2,3288.5,0.8326]
[1737648645874,3.0096,3292.2,3288.6,1.56398695]
[1737648646206,13.0,3292.9,3289.6,1.76904578]
[1737648646408,0.2515,3292.8,3289.7,1.51762427]
[1737648646574,0.2515,3292.8,3289.5,0.7891]
[1737648646772,3.2515,3292.6,3288.9,0.853]
[1737648646977,0.2515,3292.3,3289.0,0.25]
[1737648647173,0.2515,3292.3,3289.1,1.54717269]
[1737648647488,0.2515,3292.3,3289.2,1.57632108]
[1737648647691,0.2515,3292.3,3288.9,0.853]
[1737648647897,0.2515,3292.1,3289.0,1.55035675]
[1737648648098,0.2515,3292.1,3288.9,1.103]
[1737648648486,0.2515,3292.1,3289.1,0.25]
[1737648648691,0.2515,3292.1,3288.9,1.103]
[1737648648888,0.2515,3291.9,3289.1,0.25]
[1737648649096,0.2515,3291.9,3288.9,0.853]
[1737648649282,0.2515,3291.9,3289.3,0.25]
[1737648649719,0.2515,3291.9,3288.9,0.853]
[1737648650043,0.2515,3291.8,3288.4,0.8407]
[1737648650246,3.55,3291.8,3288.5,0.25]
[1737648650537,0.2515,3291.6,3288.4,0.8407]
[1737648650831,0.2515,3291.3,3288.4,0.8407]
[1737648651407,0.2515,3291.3,3287.9,3.0383]
[1737648651613,0.2515,3291.3,3287.9,3.2883]
[1737648651933,0.2515,3291.3,3288.1,0.25]
[1737648652242,0.2515,3291.3,3288.4,0.25]
[1737648652399,0.2515,3291.3,3287.9,3.41713]
[1737648652400,0.2515,3291.3,3288.9,0.25]
[1737648652743,0.2515,3291.3,3288.5,0.25]
[1737648652945,0.2515,3291.3,3288.4,0.8378]
[1737648653084,0.2515,3291.3,3288.6,0.25]
[1737648653283,3.0,3291.1,3288.2,0.25]
[1737648653637,0.2515,3290.8,3288.0,0.25]
[1737648653845,0.2515,3290.6,3287.9,2.2005]
[1737648654339,0.55,3290.8,3287.9,2.4505]
[1737648654482,3.0,3290.9,3288.2,0.25]
[1737648654483,0.2515,3290.7,3288.2,0.25]
[1737648654682,0.2515,3290.7,3288.4,0.25]
[1737648654930,3.0,3290.9,3288.2,0.25]
[1737648654931,0.55,3290.4,3288.2,0.25]
[1737648655138,0.2515,3290.4,3288.3,0.25]
[1737648655349,0.2515,3290.4,3287.9,2.2005]
[1737648655942,0.58127307,3291.3,3287.9,2.2005]
[1737648655943,0.2515,3289.8,3287.9,2.2005]
[1737648657238,0.2515,3289.8,3287.9,0.87676171]
[1737648657455,0.2515,3289.2,3285.9,0.8996]
[1737648657590,3.1626,3288.9,3285.6,0.25]
[1737648657789,3.2515,3288.6,3285.0,0.25]
[1737648657991,3.2515,3288.6,3284.6,0.25]
[1737648657992,5.4915,3288.4,3284.6,0.25]
[1737648658192,0.55,3287.9,3284.5,0.47649769]
[1737648658435,0.2515,3287.5,3284.0,3.00084328]
[1737648658643,0.2515,3287.1,3284.0,3.00084328]
[1737648658860,3.0,3287.0,3283.0,0.25]
[1737648659157,3.0,3287.0,3282.4,0.5]
[1737648659158,0.2515,3286.3,3282.4,0.5]
[1737648659362,0.55,3286.0,3281.9,0.72658665]
[1737648659666,0.2515,3285.8,3282.0,0.56794417]
[1737648659806,0.2515,3285.8,3282.2,0.25]
[1737648660006,0.2515,3285.8,3281.6,0.8742]
[1737648660007,0.4768322,3285.5,3282.7,0.0279379]
[1737648660208,0.55,3285.3,3281.8,0.25]
[1737648660438,0.55,3284.9,3281.0,0.8742]
[1737648660644,0.55,3284.5,3280.6,0.25]
[1737648660860,0.2515,3284.4,3280.7,0.75]
[1737648661021,0.2515,3284.3,3280.9,0.25]
[1737648661232,0.2515,3284.3,3280.7,0.52810978]
[1737648661233,0.2515,3284.1,3281.3,0.5]
[1737648661409,0.2515,3284.1,3281.7,0.5]
[1737648661614,0.2515,3284.1,3282.0,0.25]
[1737648661919,0.2515,3284.1,3282.5,0.25]
[1737648662260,0.2515,3284.1,3282.9,0.25]
[1737648662426,0.28133673,3284.0,3283.1,0.25]
[1737648662622,0.28133673,3284.0,3283.3,0.75]
[1737648662822,0.28133673,3284.0,3283.7,0.25]
[1737648663035,0.28133673,3284.0,3283.8,0.02732852]
[1737648663347,0.28133673,3283.9,3282.9,0.25]
[1737648663511,0.2515,3284.8,3283.3,0.25]
[1737648663953,0.27978736,3283.8,3283.4,0.02742126]
[1737648664323,0.27978736,3283.8,3283.1,0.25]
[1737648664548,0.27978736,3283.8,3281.9,0.9059]
[1737648664549,0.27978736,3283.8,3283.5,0.02751948]
[1737648664850,0.4291957,3283.8,3283.6,0.0273317]
[1737648665053,0.14940834,3283.8,3283.6,0.0273317]
[1737648665253,0.2515,3286.4,3284.1,0.25]
[1737648665433,0.2515,3286.4,3284.4,0.25]
[1737648665750,0.2515,3286.4,3285.2,0.25]
[1737648666140,0.60716516,3285.3,3284.6,0.5]
[1737648666462,0.60716516,3285.3,3285.1,0.5]
[1737648666953,0.15244386,3286.4,3285.2,0.5]
[1737648667171,0.2515,3287.1,3285.7,0.5]
[1737648667315,0.59985065,3285.5,3285.1,0.5]
[1737648667654,0.62230557,3285.8,3285.7,0.5]
[1737648668055,0.62230557,3285.8,3285.1,0.5]
[1737648668571,0.62230557,3285.8,3284.6,3.92772562]
[1737648668572,0.62230557,3285.8,3285.4,0.5]
[1737648669115,0.49823533,3285.7,3284.0,0.8359]
[1737648669377,0.49823533,3285.7,3284.0,0.5]
[1737648669517,0.59989769,3284.7,3284.3,0.4992]
[1737648669856,0.2515,3285.8,3284.7,0.4992]
[1737648670251,0.59977591,3285.3,3284.7,0.4992]
[1737648670461,0.59977591,3285.3,3285.0,0.4992]
[1737648671665,0.59977591,3285.3,3285.2,0.4992]
[1737648671965,0.7093,3286.4,3283.8,3.29525]
[1737648671966,0.15258883,3286.4,3285.9,0.4992]
[1737648672152,1.00069095,3287.1,3285.9,0.4992]
[1737648672566,0.60964025,3286.5,3285.9,0.4992]
[1737648672953,0.60964025,3286.5,3286.2,0.4992]
[1737648673162,0.60964025,3286.5,3285.5,0.8986]
[1737648673163,0.60964025,3286.5,3286.4,0.4992]
[1737648673466,0.7093,3288.0,3286.7,0.4992]
[1737648673681,0.7093,3288.0,3285.5,0.8986]
[1737648673682,0.7093,3288.0,3286.5,0.4992]
[1737648674165,0.61399529,3286.8,3286.3,0.4992]
[1737648674542,0.61399529,3286.8,3285.5,0.8986]
[1737648674543,0.61399529,3286.8,3286.4,0.4992]
[1737648675135,0.61399529,3286.8,3286.7,0.4992]
[1737648675367,0.85865192,3288.0,3287.3,0.4992]
[1737648675543,0.14935192,3288.0,3287.3,0.4992]
[1737648675739,0.6127774,3287.4,3287.3,0.4992]
[1737648677171,0.86362526,3288.5,3287.6,0.4992]
[1737648677334,0.86362526,3288.5,3287.4,0.4992]
[1737648677543,1.36186059,3288.5,3286.8,0.8554]
[1737648677876,0.49823533,3288.4,3286.8,0.8554]
[1737648678083,0.86362526,3288.5,3286.8,0.8554]
[1737648678382,1.69609078,3288.5,3286.8,0.8554]
[1737648678677,0.7093,3288.5,3286.8,0.8554]
[1737648680865,0.7093,3288.5,3286.9,0.55]
[1737648681039,1.70922055,3289.4,3288.5,2.2907]
[1737648681040,0.29139095,3289.1,3288.5,2.2907]
[1737648681882,1.70922055,3289.4,3288.5,2.2907]
[1737648682178,0.33423019,3290.8,3288.5,2.2907]
[1737648682552,1.70782676,3292.1,3288.5,2.2907]
[1737648682749,0.33423019,3291.6,3288.5,2.51977]
[1737648682952,0.33423019,3291.6,3288.5,2.2907]
[1737648683300,0.29328987,3290.7,3288.5,2.2907]
[1737648683982,0.6251,3290.6,3288.5,2.2907]
[1737648684361,0.91838987,3290.6,3288.5,2.2907]
[1737648685606,0.91838987,3290.6,3290.0,2.2907]
[1737648686181,0.91838987,3290.6,3290.0,0.81041448]
[1737648686381,0.6251,3290.6,3290.0,0.81041448]
[1737648686704,0.31763558,3290.5,3290.0,0.81041448]
[1737648686908,0.6251,3290.6,3288.7,1.1195]
[1737648687207,0.6251,3290.4,3287.3,1.0871]
[1737648687695,0.6251,3290.4,3287.4,0.55]
[1737648687911,0.6251,3290.4,3287.7,0.55]
[1737648688111,0.6251,3290.4,3288.1,0.55]
[1737648688263,0.6251,3290.4,3288.3,0.55]
[1737648688666,1.70782676,3292.1,3288.5,0.55]
[1737648688926,1.70782676,3292.1,3288.4,35.0]
[1737648688927,0.6251,3292.0,3288.7,0.55]
[1737648689296,0.6251,3292.0,3289.7,0.55]
[1737648689631,0.6251,3292.0,3289.8,36.12]
[1737648689831,0.6251,3292.0,3289.9,3.10202562]
[1737648690221,0.6251,3292.0,3289.8,1.12]
[1737648691718,0.6251,3292.0,3289.9,0.55]
[1737648692308,0.6251,3292.0,3289.8,1.12]
[1737648692479,0.6251,3292.0,3289.9,35.0]
[1737648693020,0.6251,3292.0,3289.8,1.12]
[1737648693176,0.6251,3292.0,3289.9,0.55]
[1737648693383,0.6251,3292.0,3289.8,1.12]
[1737648693584,0.6251,3292.0,3290.0,0.55]
[1737648693914,0.6251,3292.0,3290.2,0.55]
[1737648694396,0.6251,3292.0,3290.1,1.1162]
[1737648695783,0.6251,3292.0,3290.2,0.55]
[1737648695985,0.6251,3292.0,3290.2,0.71662]
[1737648696213,0.6251,3292.0,3290.2,0.55]
[1737648697080,0.6251,3292.0,3290.1,1.1162]
[1737648697499,0.6251,3292.0,3290.2,0.55]
[1737648697817,0.6251,3292.0,3290.1,1.1162]
[1737648699081,0.6251,3292.0,3288.5,1.0192]
[1737648699323,0.6251,3292.0,3288.7,1.0192]
[1737648699532,0.6251,3292.0,3288.8,1.0192]
[1737648700028,0.6251,3292.0,3289.4,0.55]
[1737648700398,0.6251,3292.0,3289.6,0.55]
[1737648700722,0.55,3291.7,3288.7,1.0727]
[1737648700940,0.55,3291.7,3288.1,0.60310029]
[1737648700941,0.55,3291.2,3287.2,1.0727]
[1737648701082,0.55,3290.8,3286.6,1.1252]
[1737648701453,4.73352084,3291.6,3286.6,1.1252]
[1737648701454,0.6251,3290.5,3286.6,1.1252]
[1737648701587,0.71352084,3290.7,3286.0,1.1252]
[1737648701588,0.6251,3290.3,3286.0,1.1252]
[1737648701785,0.55,3290.0,3286.0,1.1252]
[1737648702055,0.6251,3289.7,3286.0,1.1252]
[1737648702194,0.37839686,3289.6,3286.0,1.1252]
[1737648702398,0.6251,3289.5,3286.0,1.1252]
[1737648702722,0.55,3289.2,3286.0,1.1252]
[1737648702942,0.6251,3288.9,3286.0,1.1252]
[1737648703083,1.42676974,3288.8,3286.0,1.1252]
[1737648703284,0.6251,3288.5,3285.4,1.0403]
[1737648703608,0.6251,3288.3,3285.4,1.0403]
[1737648703810,0.6251,3288.3,3283.8,3.28434025]
[1737648703811,0.6251,3288.1,3284.8,1.1102]
[1737648704106,0.55,3287.8,3284.8,1.1102]
[1737648704307,0.6251,3287.7,3284.8,1.1102]
[1737648704620,0.6251,3287.7,3284.8,4.1545]
[1737648704784,0.6251,3287.7,3285.0,0.55]
[1737648704985,0.55,3287.6,3283.9,1.1006]
[1737648705193,0.6251,3287.5,3283.9,1.1006]
[1737648705388,0.30930226,3288.6,3284.0,35.0]
[1737648705389,1.39510307,3287.4,3284.0,35.0]
[1737648705589,0.6251,3287.1,3284.0,35.0]
[1737648705802,0.6251,3287.1,3284.1,3.10202562]
[1737648706192,0.31792622,3287.0,3284.1,3.10202562]
[1737648706535,0.31792622,3287.0,3283.9,1.1006]
[1737648706737,0.6628,3286.9,3284.2,35.0]
[1737648706922,0.55,3286.4,3283.2,1.0624]
[1737648707091,0.6628,3286.1,3283.2,1.0624]
[1737648707290,1.01670621,3286.0,3282.4,1.0624]
[1737648707515,0.55,3285.4,3282.4,1.0624]
[1737648707744,0.6628,3285.2,3281.5,1.0302]
[1737648707945,0.55,3285.1,3281.6,35.0]
[1737648708142,0.6628,3285.0,3281.6,35.0]
[1737648708458,0.6628,3285.0,3281.5,4.07751]
[1737648708459,0.55,3284.9,3281.5,1.0302]
[1737648708617,0.6628,3284.6,3281.2,3.04764]
[1737648708819,0.6628,3284.6,3281.3,3.352334]
[1737648709144,0.6628,3284.4,3281.4,35.0]
[1737648709453,0.6628,3284.4,3281.8,3.0471]
[1737648709672,0.6628,3284.4,3281.8,0.55]
[1737648709974,0.6628,3284.4,3283.0,35.0]
[1737648710177,0.6628,3284.4,3283.1,3.10202562]
[1737648710325,0.1628,3284.4,3283.1,3.10202562]
[1737648710526,0.1628,3284.4,3282.6,1.0747]
[1737648710841,0.1628,3284.4,3283.7,35.0]
[1737648711042,13.0,3287.7,3283.7,35.0]
[1737648711243,1.16263569,3287.6,3283.0,0.55]
[1737648711443,1.16263569,3287.6,3282.6,1.0747]
[1737648711444,1.16263569,3287.6,3282.8,3.04612]
[1737648711758,1.16263569,3287.6,3284.2,35.0]
[1737648711759,4.16263569,3287.6,3284.2,35.0]
[1737648711921,1.16263569,3287.6,3284.2,35.0]
[1737648712653,0.85333343,3287.6,3284.2,3.0448]
[1737648712817,0.85333343,3287.6,3284.0,3.04505]
[1737648713019,0.41534481,3287.6,3284.8,0.55]
[1737648713218,0.41534481,3287.6,3284.7,35.0]